fUSD/lending_fUSD_20250417
["ID","MTS","AMOUNT","RATE_DAILY","PERIOD"]
[358255934,1744876359653,-2757.43618807,0.00055,120]
[358255935,1744876359662,-1000.0,0.00055,120]
[358255936,1744876359672,-334.0,0.00055,120]
[358255937,1744876359681,-847.68228044,0.00055,10]
[358255938,1744876359691,-812.0,0.00055,120]
[358255939,1744876359701,-563.56,0.00055019,2]
[358255940,1744876359710,-1000.0,0.00055052,15]
[358255941,1744876359720,-1000.0,0.00055052,14]
[358255942,1744876359729,-1000.0,0.00055052,15]
[358255943,1744876359739,-617.12936597,0.00055052,15]
[358255944,1744876359748,-586.43104489,0.00055052,15]
[358255945,1744876359758,-1000.0,0.00055052,15]
[358255946,1744876359767,-1000.0,0.00055052,15]
[358255947,1744876359777,-1000.39626616,0.00055052,5]
[358255948,1744876359787,-1000.0,0.00055052,15]
[358255949,1744876359798,-959.7218,0.00055055,3]
[358255950,1744876359808,-2000.0,0.00055055,3]
[358255951,1744876359818,-500.0,0.00055068,120]
[358255952,1744876359827,-158.811424,0.00055068,120]
[358255953,1744876359836,-591.156374,0.00055068,120]
[358255954,1744876359845,-227.981738,0.00055068,120]
[358255955,1744876359854,-500.0,0.00055068,120]
[358255956,1744876359863,-1611.74,0.00055068,120]
[358255957,1744876359873,-772.09,0.00055068,120]
[358255958,1744876359882,-3077.05,0.00055068,120]
[358255959,1744876359892,-516.0,0.00055068,120]
[358255960,1744876359902,-825.74,0.00055068,120]
[358255961,1744876359914,-318.38940795,0.00055068,120]
[358255962,1744876359924,-1329.86,0.00055068,120]
[358255963,1744876359933,-1041.46,0.00055068,120]
[358255964,1744876359943,-995.71,0.00055068,120]
[358255965,1744876359953,-561.46,0.00055068,30]
[358255966,1744876359963,-889.17,0.00055068,120]
[358255967,1744876359972,-1598.19,0.00055068,120]
[358255968,1744876359982,-2447.13,0.00055068,120]
[358255969,1744876359991,-934.81,0.00055068,120]
[358255970,1744876360000,-558.88,0.00055068,120]
[358255971,1744876360010,-120995.21,0.00055068,7]
[358255972,1744876360019,-563.45988847,0.00055068,120]
[358255973,1744876360029,-1597.3,0.00055068,120]
[358255974,1744876360039,-724.18,0.00055068,2]
[358255975,1744876360049,-1073.23,0.00055068,120]
[358255976,1744876360059,-852.63,0.00055068,120]
[358255977,1744876360068,-9618.82,0.00055068,2]
[358255978,1744876360078,-748.68,0.00055068,120]
[358255979,1744876360087,-507.6,0.00055068,120]
[358255980,1744876360097,-4167.06,0.00055068,120]
[358255981,1744876360106,-547.49,0.00055068,120]
[358255982,1744876360116,-762.47,0.00055068,120]
[358255983,1744876360125,-1761.11,0.00055068,120]
[358255984,1744876360136,-603.07,0.00055068,120]
[358255985,1744876360145,-677.96,0.00055068,120]
[358255986,1744876360154,-895.97,0.00055068,120]
[358255987,1744876360163,-2042.51,0.00055068,120]
[358255988,1744876360172,-2095.32,0.00055068,120]
[358255989,1744876360182,-783.72,0.00055068,120]
[358255990,1744876360191,-568.82,0.00055068,120]
[358255991,1744876360200,-670.78,0.00055068,120]
[358255992,1744876360211,-1727.55,0.00055068,120]
[358255993,1744876360220,-500.0,0.00055068,120]
[358255994,1744876360231,-1214.17,0.00055068,120]
[358255995,1744876360241,-500.0,0.00055068,36]
[358255996,1744876360250,-563.29,0.00055068,120]
[358255997,1744876360260,-765.17,0.00055068,120]
[358255998,1744876360270,-781.9,0.00055068,120]
[358255999,1744876360280,-2735.7,0.00055068,120]
[358256000,1744876360290,-2102.94,0.00055068,120]
[358256001,1744876360300,-541.28,0.00055068,120]
[358256002,1744876360309,-524.96,0.00055068,120]
[358256003,1744876360318,-776.69,0.00055068,120]
[358256004,1744876360328,-1055.54,0.00055068,120]
[358256005,1744876360338,-1656.3,0.00055068,120]
[358256006,1744876360348,-1158.21,0.00055068,35]
[358256007,1744876360358,-1489.79,0.00055068,120]
[358256008,1744876360367,-500.0,0.00055068,120]
[358256009,1744876360381,-1223.23,0.00055068,120]
[358256010,1744876360391,-1296.94,0.00055068,120]
[358256011,1744876360400,-606.92,0.00055068,120]
[358256012,1744876360410,-500.0,0.00055068,120]
[358256013,1744876360420,-1176.7,0.00055068,120]
[358256014,1744876360429,-1628.14,0.00055068,120]
[358256015,1744876360440,-1112.64,0.00055068,120]
[358256016,1744876360449,-2221.31,0.00055068,120]
[358256017,1744876360459,-530.74,0.00055068,120]
[358256018,1744876360469,-862.16,0.00055068,120]
[358256019,1744876360478,-1379.41,0.00055068,120]
[358256020,1744876360488,-507.47,0.00055068,120]
[358256021,1744876360498,-997.54,0.00055068,120]
[358256022,1744876360507,-1247.38,0.00055068,120]
[358256023,1744876360517,-519.16,0.00055068,120]
[358256024,1744876360527,-730.71,0.00055068,120]
[358256025,1744876360536,-946.46,0.00055068,120]
[358256026,1744876360546,-1007.48,0.00055068,120]
[358256027,1744876360555,-559.91,0.00055068,120]
[358256028,1744876360564,-1373.68,0.00055068,120]
[358256029,1744876360573,-940.05,0.00055068,120]
[358256030,1744876360583,-1203.26,0.00055068,120]
[358256031,1744876360592,-825.67,0.00055068,120]
[358256032,1744876360601,-1575.92,0.00055068,120]
[358256033,1744876360610,-1004.58,0.00055068,120]
[358256034,1744876360620,-1167.01,0.00055068,120]
[358256035,1744876360629,-701.01,0.00055068,120]
[358256036,1744876360639,-1323.83,0.00055068,120]
[358256037,1744876360648,-803.28,0.00055068,30]
[358256038,1744876360657,-507.89,0.00055068,120]
[358256039,1744876360667,-1748.54,0.00055068,120]
[358256040,1744876360676,-3514.34,0.00055068,120]
[358256041,1744876360685,-1749.19,0.00055068,120]
[358256042,1744876360767,-1134.15,0.00055068,120]
[358256043,1744876360777,-1157.9,0.00055068,120]
[358256044,1744876360787,-1115.45,0.00055068,120]
[358256045,1744876360797,-1269.95,0.00055068,120]
[358256046,1744876360806,-1020.0,0.00055068,120]
[358256047,1744876360816,-1129.1,0.00055068,120]
[358256048,1744876360825,-1581.24,0.00055068,120]
[358256049,1744876360835,-766.52,0.00055068,120]
[358256050,1744876360844,-683.59,0.00055068,120]
[358256051,1744876360853,-605.07,0.00055068,120]
[358256052,1744876360863,-1943.48,0.00055068,120]
[358256053,1744876360873,-249.17248167,0.00055068,120]
[358256054,1744876360883,-945.69,0.00055068,120]
[358256055,1744876360892,-1873.76,0.00055068,120]
[358256056,1744876360902,-524.86,0.00055068,120]
[358256057,1744876360912,-566.9,0.00055068,120]
[358256058,1744876360922,-536.75,0.00055068,120]
[358256059,1744876360932,-1511.21,0.00055068,120]
[358256060,1744876360942,-2015.84,0.00055068,120]
[358256061,1744876360951,-576.1,0.00055068,120]
[358256062,1744876360961,-503.02,0.00055068,120]
[358256063,1744876360970,-1485.3,0.00055068,120]
[358256064,1744876360980,-241.48293649,0.00055068,120]
[358256065,1744876360989,-616.82,0.00055068,120]
[358256066,1744876360999,-1889.42,0.00055068,120]
[358256067,1744876361009,-500.0,0.00055068,120]
[358256068,1744876361019,-521.54,0.00055068,120]
[358256069,1744876361028,-1626.25,0.00055068,120]
[358256070,1744876361038,-1339.26,0.00055068,120]
[358256071,1744876361048,-1497.28,0.00055068,120]
[358256072,1744876361057,-1832.25,0.00055068,120]
[358256073,1744876361067,-630.84,0.00055068,120]
[358256074,1744876361078,-648.59462816,0.00055068,120]
[358256075,1744876361088,-615.64,0.00055068,120]
[358256076,1744876361098,-692.24,0.00055068,120]
[358256077,1744876361108,-1043.32,0.00055068,120]
[358256078,1744876361118,-1231.98,0.00055068,120]
[358256079,1744876361127,-1684.61,0.00055068,120]
[358256080,1744876361140,-668.2,0.00055068,120]
[358256081,1744876361150,-864.39,0.00055068,120]
[358256082,1744876361160,-626.02,0.00055068,120]
[358256083,1744876361170,-1072.56,0.00055068,120]
[358256084,1744876361181,-1764.88,0.00055068,120]
[358256085,1744876361191,-5640.62,0.00055068,120]
[358256086,1744876361201,-917.98,0.00055068,120]
[358256087,1744876361211,-1475.44,0.00055068,120]
[358256088,1744876361222,-1612.75,0.00055068,120]
[358256089,1744876361232,-500.0,0.00055068,120]
[358256090,1744876361242,-2211.01,0.00055068,120]
[358256091,1744876361252,-791.97,0.00055068,14]
[358256092,1744876361262,-1177.02,0.00055068,120]
[358256093,1744876361271,-1468.16,0.00055068,120]
[358256094,1744876361281,-1829.33,0.00055068,120]
[358256095,1744876361292,-500.0,0.00055068,120]
[358256096,1744876361305,-520.62,0.00055068,120]
[358256097,1744876361315,-793.46,0.00055068,120]
[358256098,1744876361325,-1128.03,0.00055068,120]
[358256099,1744876361336,-527.45,0.00055068,120]
[358256100,1744876361346,-674.54,0.00055068,120]
[358256101,1744876361355,-504.45,0.00055068,120]
[358256102,1744876361366,-586.57,0.00055068,120]
[358256103,1744876361376,-1036.71,0.00055068,120]
[358256104,1744876361386,-909.38,0.00055068,120]
[358256105,1744876361396,-548.22576014,0.00055068,120]
[358256106,1744876361406,-1171.86,0.00055068,120]
[358256107,1744876361416,-2181.26,0.00055068,120]
[358256108,1744876361425,-675.13,0.00055068,120]
[358256109,1744876361435,-500.0,0.00055068,120]
[358256110,1744876361445,-424.17968199,0.00055068,120]
[358256111,1744876361454,-1081.53,0.00055068,120]
[358256112,1744876361464,-1595.7,0.00055068,120]
[358256113,1744876361474,-1097.37,0.00055068,120]
[358256114,1744876361483,-500.0,0.00055068,120]
[358256115,1744876361493,-1093.79,0.00055068,120]
[358256116,1744876361503,-722.02,0.00055068,120]
[358256117,1744876361512,-978.59,0.00055068,120]
[358256118,1744876361522,-1836.63,0.00055068,120]
[358256119,1744876361532,-614.33,0.00055068,120]
[358256120,1744876361542,-1012.01,0.00055068,120]
[358256121,1744876361554,-2529.41,0.00055068,120]
[358256122,1744876361564,-1942.54,0.00055068,120]
[358256123,1744876361574,-2464.72,0.00055068,120]
[358256124,1744876361584,-771.84,0.00055068,120]
[358256125,1744876361594,-1110.2,0.00055068,120]
[358256126,1744876361604,-1931.2,0.00055068,120]
[358256127,1744876361613,-676.22,0.00055068,120]
[358256128,1744876361622,-601.64,0.00055068,120]
[358256129,1744876361632,-500.0,0.00055068,120]
[358256130,1744876361641,-2027.54,0.00055068,120]
[358256131,1744876361651,-1731.61,0.00055068,120]
[358256132,1744876361660,-506.42,0.00055068,120]
[358256133,1744876361670,-560.74,0.00055068,120]
[358256134,1744876361680,-1571.6,0.00055068,120]
[358256135,1744876361690,-575.17,0.00055068,120]
[358256136,1744876361701,-323.22639548,0.00055068,120]
[358256137,1744876361711,-1491.97,0.00055068,120]
[358256138,1744876361721,-1061.2,0.00055068,120]
[358256139,1744876361730,-559.87,0.00055068,120]
[358256140,1744876361740,-1783.03,0.00055068,120]
[358256141,1744876361750,-794.06,0.00055068,120]
[358256142,1744876361759,-1489.6,0.00055068,120]
[358256143,1744876361768,-3035.42,0.00055068,120]
[358256144,1744876361778,-1985.57,0.00055068,120]
[358256145,1744876361787,-2015.28,0.00055068,120]
[358256146,1744876361798,-835.38,0.00055068,120]
[358256147,1744876361808,-843.17,0.00055068,120]
[358256148,1744876361817,-2125.57,0.00055068,120]
[358256149,1744876361828,-728.48,0.00055068,120]
[358256150,1744876361838,-506.65,0.00055068,120]
[358256151,1744876361848,-517.91,0.00055068,120]
[358256152,1744876361858,-531.0,0.00055068,120]
[358256153,1744876361867,-1110.06,0.00055068,120]
[358256154,1744876361877,-500.0,0.00055068,120]
[358256155,1744876361887,-3548.1,0.00055068,120]
[358256156,1744876361897,-887.03,0.00055068,120]
[358256157,1744876361907,-1073.22,0.00055068,120]
[358256158,1744876361916,-1152.77,0.00055068,120]
[358256159,1744876361926,-2168.54,0.00055068,120]
[358256160,1744876361936,-568.46,0.00055068,120]
[358256161,1744876361945,-888.6,0.00055068,120]
[358256162,1744876361955,-979.12,0.00055068,120]
[358256163,1744876361964,-500.0,0.00055068,120]
[358256164,1744876361973,-2832.46,0.00055068,120]
[358256165,1744876361983,-518.93,0.00055068,120]
[358256166,1744876361992,-500.0,0.00055068,120]
[358256167,1744876362002,-1780.21,0.00055068,120]
[358256168,1744876362011,-1076.61,0.00055068,120]
[358256169,1744876362021,-889.68,0.00055068,120]
[358256170,1744876362029,-3566.71,0.00055068,120]
[358256171,1744876362038,-1124.76,0.00055068,120]
[358256172,1744876362048,-1217.56,0.00055068,120]
[358256173,1744876362058,-1639.19,0.00055068,120]
[358256174,1744876362068,-972.81,0.00055068,118]
[358256175,1744876362078,-1092.56,0.00055068,120]
[358256176,1744876362087,-1788.27,0.00055068,120]
[358256177,1744876362096,-822.54,0.00055068,120]
[358256178,1744876362106,-500.0,0.00055068,120]
[358256179,1744876362116,-861.37,0.00055068,120]
[358256180,1744876362125,-702.66,0.00055068,120]
[358256181,1744876362138,-1270.01,0.00055068,120]
[358256182,1744876362149,-909.8,0.00055068,120]
[358256183,1744876362159,-593.0,0.00055068,120]
[358256184,1744876362169,-753.51,0.00055068,120]
[358256185,1744876362179,-516.56,0.00055068,120]
[358256186,1744876362188,-973.47,0.00055068,120]
[358256187,1744876362197,-2790.52,0.00055068,120]
[358256188,1744876362207,-554.36,0.00055068,120]
[358256189,1744876362216,-555.93,0.00055068,120]
[358256190,1744876362226,-500.0,0.00055068,120]
[358256191,1744876362236,-1344.71,0.00055068,120]
[358256192,1744876362246,-1633.9,0.00055068,120]
[358256193,1744876362255,-1508.99,0.00055068,120]
[358256194,1744876362265,-801.2,0.00055068,120]
[358256195,1744876362275,-2484.07,0.00055068,120]
[358256196,1744876362284,-3739.63,0.00055068,120]
[358256197,1744876362294,-605.98,0.00055068,120]
[358256198,1744876362303,-3141.6,0.00055068,120]
[358256199,1744876362314,-536.48,0.00055068,120]
[358256200,1744876362324,-1042.98,0.00055068,120]
[358256201,1744876362333,-1821.22,0.00055068,120]
[358256202,1744876362343,-1155.97,0.00055068,120]
[358256203,1744876362353,-518.89946539,0.00055068,120]
[358256204,1744876362362,-608.82,0.00055068,120]
[358256205,1744876362372,-1542.01,0.00055068,120]
[358256206,1744876362381,-500.0,0.00055068,120]
[358256207,1744876362391,-608.54,0.00055068,120]
[358256208,1744876362401,-1023.29,0.00055068,120]
[358256209,1744876362411,-505.15,0.00055068,120]
[358256210,1744876362421,-996.12,0.00055068,120]
[358256211,1744876362430,-821.03,0.00055068,120]
[358256212,1744876362439,-533.51,0.00055068,120]
[358256213,1744876362449,-1488.96,0.00055068,120]
[358256214,1744876362458,-2888.97,0.00055068,120]
[358256215,1744876362467,-605.83,0.00055068,120]
[358256216,1744876362476,-570.18,0.00055068,120]
[358256217,1744876362485,-722.72,0.00055068,120]
[358256218,1744876362495,-754.15,0.00055068,120]
[358256219,1744876362505,-1214.83,0.00055068,120]
[358256220,1744876362514,-1002.18,0.00055068,8]
[358256221,1744876362524,-1218.38,0.00055068,120]
[358256222,1744876362533,-1097.9,0.00055068,120]
[358256223,1744876362543,-1622.19,0.00055068,120]
[358256224,1744876362554,-7361.74,0.00055068,120]
[358256225,1744876362564,-779.5,0.00055068,120]
[358256226,1744876362574,-2365.86,0.00055068,120]
[358256227,1744876362584,-364.24360346,0.00055069,120]
[358256228,1744876362594,-150.0,0.00055095,120]
[358256229,1744876362604,-150.0,0.00055095,120]
[358256230,1744876362613,-150.0,0.00055095,120]
[358256231,1744876362623,-150.0,0.00055095,120]
[358256232,1744876362633,-209.0,0.000551,30]
[358256233,1744876362642,-1019.39924498,0.00055104,15]
[358256234,1744876362652,-500.0,0.00055137,120]
[358256235,1744876362662,-508.01,0.00055218,2]
[358256236,1744876362671,-700.0,0.0005527,30]
[358256237,1744876362681,-400.0,0.0005527,30]
[358256238,1744876362690,-209.0,0.0005528,30]
[358256239,1744876362700,-1401.9672,0.000553,30]
[358256240,1744876362710,-786.152,0.000553,30]
[358256241,1744876362720,-2000.0,0.00055341,120]
[358256242,1744876362729,-200.0,0.00055341,120]
[358256243,1744876362747,-500.0,0.00055342,120]
[358256244,1744876362756,-158.811424,0.00055342,120]
[358256245,1744876362766,-591.156374,0.00055342,120]
[358256246,1744876362776,-227.981738,0.00055342,120]
[358256247,1744876362785,-500.0,0.00055342,120]
[358256248,1744876362795,-1611.74,0.00055342,120]
[358256249,1744876362806,-772.09,0.00055342,120]
[358256250,1744876362816,-3077.05,0.00055342,120]
[358256251,1744876362826,-516.0,0.00055342,120]
[358256252,1744876362837,-825.74,0.00055342,120]
[358256253,1744876362848,-1329.86,0.00055342,120]
[358256254,1744876362858,-1041.46,0.00055342,120]
[358256255,1744876362868,-995.71,0.00055342,120]
[358256256,1744876362878,-561.46,0.00055342,30]
[358256257,1744876362889,-889.17,0.00055342,120]
[358256258,1744876362899,-1598.19,0.00055342,120]
[358256259,1744876362910,-2447.13,0.00055342,120]
[358256260,1744876362921,-934.81,0.00055342,120]
[358256261,1744876362932,-558.88,0.00055342,120]
[358256262,1744876362943,-120995.21,0.00055342,7]
[358256263,1744876362952,-1597.3,0.00055342,120]
[358256264,1744876362961,-724.18,0.00055342,2]
[358256265,1744876362970,-1073.23,0.00055342,120]
[358256266,1744876362979,-852.63,0.00055342,120]
[358256267,1744876362989,-9618.82,0.00055342,2]
[358256268,1744876362999,-748.68,0.00055342,120]
[358256269,1744876363009,-507.6,0.00055342,120]
[358256270,1744876363019,-4167.06,0.00055342,120]
[358256271,1744876363028,-547.49,0.00055342,120]
[358256272,1744876363037,-762.47,0.00055342,120]
[358256273,1744876363047,-1761.11,0.00055342,120]
[358256274,1744876363056,-603.07,0.00055342,120]
[358256275,1744876363065,-677.96,0.00055342,120]
[358256276,1744876363074,-895.97,0.00055342,120]
[358256277,1744876363083,-2042.51,0.00055342,120]
[358256278,1744876363092,-2095.32,0.00055342,120]
[358256279,1744876363101,-783.72,0.00055342,120]
[358256280,1744876363110,-568.82,0.00055342,120]
[358256281,1744876363119,-670.78,0.00055342,120]
[358256282,1744876363128,-1727.55,0.00055342,120]
[358256283,1744876363140,-426.5930586,0.00055342,120]
[358256284,1744876363149,-1214.17,0.00055342,120]
[358256285,1744876363158,-563.29,0.00055342,120]
[358256286,1744876363168,-765.17,0.00055342,120]
[358256287,1744876363177,-781.9,0.00055342,120]
[358256288,1744876363187,-2735.7,0.00055342,120]
[358256289,1744876363196,-2102.94,0.00055342,120]
[358256290,1744876363204,-541.28,0.00055342,120]
[358256291,1744876363215,-524.96,0.00055342,120]
[358256292,1744876363224,-776.69,0.00055342,120]
[358256293,1744876363233,-1055.54,0.00055342,120]
[358256294,1744876363242,-1656.3,0.00055342,120]
[358256295,1744876363251,-1158.21,0.00055342,35]
[358256296,1744876363261,-1489.79,0.00055342,120]
[358256297,1744876363271,-218.39807835,0.00055342,120]
[358256298,1744876363280,-1223.23,0.00055342,120]
[358256299,1744876363290,-1296.94,0.00055342,120]
[358256300,1744876363300,-606.92,0.00055342,120]
[358256301,1744876363310,-376.03862944,0.00055342,120]
[358256302,1744876363319,-1176.7,0.00055342,120]
[358256303,1744876363329,-1628.14,0.00055342,120]
[358256304,1744876363339,-1112.64,0.00055342,120]
[358256305,1744876363350,-2221.31,0.00055342,120]
[358256306,1744876363361,-530.74,0.00055342,120]
[358256307,1744876363373,-862.16,0.00055342,120]
[358256308,1744876363382,-1379.41,0.00055342,120]
[358256309,1744876363392,-507.47,0.00055342,120]
[358256310,1744876363402,-997.54,0.00055342,120]
[358256311,1744876363414,-1247.38,0.00055342,120]
[358256312,1744876363426,-519.16,0.00055342,120]
[358256313,1744876363436,-730.71,0.00055342,120]
[358256314,1744876363447,-946.46,0.00055342,120]
[358256315,1744876363459,-1007.48,0.00055342,120]
[358256316,1744876363469,-559.91,0.00055342,120]
[358256317,1744876363479,-1373.68,0.00055342,120]
[358256318,1744876363488,-940.05,0.00055342,120]
[358256319,1744876363497,-1203.26,0.00055342,120]
[358256320,1744876363507,-825.67,0.00055342,120]
[358256321,1744876363516,-1575.92,0.00055342,120]
[358256322,1744876363526,-1004.58,0.00055342,120]
[358256323,1744876363536,-1167.01,0.00055342,120]
[358256324,1744876363547,-701.01,0.00055342,120]
[358256325,1744876363557,-1323.83,0.00055342,120]
[358256326,1744876363566,-803.28,0.00055342,30]
[358256327,1744876363575,-507.89,0.00055342,120]
[358256328,1744876363585,-1748.54,0.00055342,120]
[358256329,1744876363595,-3514.34,0.00055342,120]
[358256330,1744876363604,-1749.19,0.00055342,120]
[358256331,1744876363613,-1134.15,0.00055342,120]
[358256332,1744876363622,-1157.9,0.00055342,120]
[358256333,1744876363632,-1115.45,0.00055342,120]
[358256334,1744876363641,-1269.95,0.00055342,120]
[358256335,1744876363650,-1020.0,0.00055342,120]
[358256336,1744876363660,-1129.1,0.00055342,120]
[358256337,1744876363670,-1581.24,0.00055342,120]
[358256338,1744876363680,-766.52,0.00055342,120]
[358256339,1744876363689,-683.59,0.00055342,120]
[358256340,1744876363699,-605.07,0.00055342,120]
[358256341,1744876363709,-1943.48,0.00055342,120]
[358256342,1744876363719,-945.69,0.00055342,120]
[358256343,1744876363729,-1873.76,0.00055342,120]
[358256344,1744876363739,-566.9,0.00055342,120]
[358256345,1744876363749,-536.75,0.00055342,120]
[358256346,1744876363759,-1511.21,0.00055342,120]
[358256347,1744876363769,-2015.84,0.00055342,120]
[358256348,1744876363779,-576.1,0.00055342,120]
[358256349,1744876363789,-503.02,0.00055342,120]
[358256350,1744876363799,-1485.3,0.00055342,120]
[358256351,1744876363808,-616.82,0.00055342,120]
[358256352,1744876363817,-1889.42,0.00055342,120]
[358256353,1744876363827,-262.69844735,0.00055342,120]
[358256354,1744876363837,-521.54,0.00055342,120]
[358256355,1744876363846,-1626.25,0.00055342,120]
[358256356,1744876363855,-1339.26,0.00055342,120]
[358256357,1744876363865,-1497.28,0.00055342,120]
[358256358,1744876363875,-1832.25,0.00055342,120]
[358256359,1744876363884,-630.84,0.00055342,120]
[358256360,1744876363894,-615.64,0.00055342,120]
[358256361,1744876363903,-692.24,0.00055342,120]
[358256362,1744876363913,-1043.32,0.00055342,120]
[358256363,1744876363923,-1231.98,0.00055342,120]
[358256364,1744876363932,-1684.61,0.00055342,120]
[358256365,1744876363942,-668.2,0.00055342,120]
[358256366,1744876363951,-864.39,0.00055342,120]
[358256367,1744876363961,-626.02,0.00055342,120]
[358256368,1744876363970,-1072.56,0.00055342,120]
[358256369,1744876363979,-1764.88,0.00055342,120]
[358256370,1744876363988,-5640.62,0.00055342,120]
[358256371,1744876363997,-917.98,0.00055342,120]
[358256372,1744876364007,-1475.44,0.00055342,120]
[358256373,1744876364017,-1612.75,0.00055342,120]
[358256374,1744876364026,-500.0,0.00055342,120]
[358256375,1744876364035,-791.97,0.00055342,14]
[358256376,1744876364044,-2211.01,0.00055342,120]
[358256377,1744876364054,-1177.02,0.00055342,120]
[358256378,1744876364063,-1468.16,0.00055342,120]
[358256379,1744876364073,-1829.33,0.00055342,120]
[358256380,1744876364082,-485.56731095,0.00055342,120]
[358256381,1744876364092,-520.62,0.00055342,120]
[358256382,1744876364101,-793.46,0.00055342,120]
[358256383,1744876364110,-1128.03,0.00055342,120]
[358256384,1744876364120,-527.45,0.00055342,120]
[358256385,1744876364130,-674.54,0.00055342,120]
[358256386,1744876364145,-504.45,0.00055342,120]
[358256387,1744876364154,-586.57,0.00055342,120]
[358256388,1744876364164,-1036.71,0.00055342,120]
[358256389,1744876364174,-909.38,0.00055342,120]
[358256390,1744876364186,-1171.86,0.00055342,120]
[358256391,1744876364196,-2181.26,0.00055342,120]
[358256392,1744876364205,-675.13,0.00055342,120]
[358256393,1744876364216,-500.0,0.00055342,120]
[358256394,1744876364226,-1081.53,0.00055342,120]
[358256395,1744876364237,-1595.7,0.00055342,120]
[358256396,1744876364248,-1097.37,0.00055342,120]
[358256397,1744876364258,-422.49765761,0.00055342,120]
[358256398,1744876364268,-1093.79,0.00055342,120]
[358256399,1744876364278,-722.02,0.00055342,120]
[358256400,1744876364288,-978.59,0.00055342,120]
[358256401,1744876364299,-1836.63,0.00055342,120]
[358256402,1744876364310,-614.33,0.00055342,120]
[358256403,1744876364322,-1012.01,0.00055342,120]
[358256404,1744876364333,-2529.41,0.00055342,120]
[358256405,1744876364342,-1942.54,0.00055342,120]
[358256406,1744876364352,-2464.72,0.00055342,120]
[358256407,1744876364362,-771.84,0.00055342,120]
[358256408,1744876364372,-1110.2,0.00055342,120]
[358256409,1744876364383,-1931.2,0.00055342,120]
[358256410,1744876364392,-676.22,0.00055342,120]
[358256411,1744876364401,-601.64,0.00055342,120]
[358256412,1744876364410,-372.6,0.00055342,120]
[358256413,1744876364420,-2027.54,0.00055342,120]
[358256414,1744876364429,-1731.61,0.00055342,120]
[358256415,1744876364439,-506.42,0.00055342,120]
[358256416,1744876364449,-560.74,0.00055342,120]
[358256417,1744876364459,-1571.6,0.00055342,120]
[358256418,1744876364469,-575.17,0.00055342,120]
[358256419,1744876364479,-1491.97,0.00055342,120]
[358256420,1744876364489,-1061.2,0.00055342,120]
[358256421,1744876364498,-559.87,0.00055342,120]
[358256422,1744876364508,-1783.03,0.00055342,120]
[358256423,1744876364517,-794.06,0.00055342,120]
[358256424,1744876364526,-1489.6,0.00055342,120]
[358256425,1744876364535,-3035.42,0.00055342,120]
[358256426,1744876364545,-1985.57,0.00055342,120]
[358256427,1744876364555,-2015.28,0.00055342,120]
[358256428,1744876364564,-835.38,0.00055342,120]
[358256429,1744876364574,-843.17,0.00055342,120]
[358256430,1744876364584,-2125.57,0.00055342,120]
[358256431,1744876364594,-728.48,0.00055342,120]
[358256432,1744876364603,-506.65,0.00055342,120]
[358256433,1744876364613,-517.91,0.00055342,120]